bitfinex/quotes_BTCUSD_20241003
["timestamp","ask_amount","ask_price","bid_price","bid_amount"]
[1727970216057,0.000818,60352.0,60351.0,0.265697]
[1727970216305,0.000818,60352.0,60351.0,0.89156082]
[1727970216559,0.000818,60352.0,60351.0,0.89356082]
[1727970217071,1e-06,60352.0,60351.0,0.97165205]
[1727970217310,0.24872116,60362.0,60361.0,0.290669]
[1727970217591,0.24872116,60362.0,60361.0,0.45185571]
[1727970217833,0.24872116,60362.0,60361.0,0.89153282]
[1727970218074,0.000818,60365.0,60364.0,0.265661]
[1727970218318,0.05255129,60365.0,60364.0,0.265661]
[1727970218568,0.05255129,60365.0,60364.0,0.45184771]
[1727970219771,0.05255129,60365.0,60364.0,0.265661]
[1727970220468,0.17642339,60365.0,60364.0,0.265661]
[1727970220724,0.05255129,60365.0,60364.0,0.265661]
[1727970220939,0.17643962,60365.0,60364.0,0.265661]
[1727970221605,0.17643962,60365.0,60364.0,0.165661]
[1727970222117,0.32511977,60365.0,60364.0,0.165661]
[1727970222338,0.40501977,60365.0,60364.0,0.165661]
[1727970222568,0.25633962,60365.0,60364.0,0.165661]
[1727970223747,0.35313962,60365.0,60364.0,0.165661]
[1727970224200,0.35313962,60365.0,60362.0,0.331333]
[1727970224201,0.22925129,60365.0,60362.0,0.165664]
[1727970224431,0.05173329,60364.0,60348.0,0.28509235]
[1727970224673,0.0255217,60364.0,60363.0,0.165664]
[1727970224903,0.04953192,60364.0,60363.0,0.165664]
[1727970227103,0.14863684,60364.0,60363.0,0.165664]
[1727970227641,0.04953192,60364.0,60363.0,0.165664]
[1727970227829,0.07514949,60365.0,60364.0,0.165661]
[1727970228088,0.12468049,60365.0,60364.0,0.165661]
[1727970228754,0.12470559,60365.0,60364.0,0.165661]
[1727970229236,0.000818,60365.0,60364.0,0.165661]
[1727970229458,0.05037978,60365.0,60364.0,0.165661]
[1727970229743,0.000818,60365.0,60364.0,0.165661]
[1727970229970,0.31773414,60365.0,60359.0,0.33135]
[1727970230230,0.000818,60364.0,60363.0,0.165662]
[1727970230473,0.000818,60364.0,60350.0,0.431399]
[1727970230692,0.000818,60364.0,60363.0,0.165664]
[1727970230693,0.05038168,60364.0,60363.0,0.165664]
[1727970230926,0.000818,60364.0,60363.0,0.165664]
[1727970231629,0.05037104,60364.0,60363.0,0.165664]
[1727970231867,0.09995373,60364.0,60363.0,0.165664]
[1727970233310,0.05037104,60364.0,60363.0,0.165664]
[1727970235357,0.09996282,60364.0,60363.0,0.165664]
[1727970235838,0.05037104,60364.0,60363.0,0.165664]
[1727970236068,0.09996282,60364.0,60363.0,0.165664]
[1727970236514,0.05037104,60364.0,60363.0,0.165664]
[1727970237004,0.09997117,60364.0,60363.0,0.165664]
[1727970237440,0.05037104,60364.0,60363.0,0.165664]
[1727970237750,0.000818,60364.0,60363.0,0.165664]
[1727970238252,0.01338038,60364.0,60363.0,0.165664]
[1727970238509,0.000818,60364.0,60363.0,0.165664]
[1727970238938,0.000818,60364.0,60359.0,0.331348]
[1727970239177,0.0943,60363.0,60361.0,0.165669]
[1727970239401,0.14393243,60363.0,60362.0,0.165667]
[1727970239617,0.21948233,60363.0,60362.0,0.165667]
[1727970239836,0.08,60362.0,60356.0,0.331363]
[1727970240054,0.08,60362.0,60341.0,0.331444]
[1727970240248,0.245667,60362.0,60348.0,0.00675361]
[1727970240516,0.28140149,60361.0,60357.0,0.331357]
[1727970240748,0.09922087,60360.0,60358.0,0.165677]
[1727970240962,0.09922087,60360.0,60348.0,0.00675361]
[1727970240963,0.04963243,60360.0,60348.0,0.00675361]
[1727970241364,0.331356,60358.0,60339.0,0.24872116]
[1727970241369,0.04963243,60356.0,60339.0,0.24872116]
[1727970241601,0.18150227,60355.0,60339.0,0.24872116]
[1727970241841,0.0945,60351.0,60326.0,0.07446431]
[1727970242068,0.0945,60351.0,60333.0,0.0067347]
[1727970242069,0.165718,60344.0,60333.0,0.0067347]
[1727970242297,0.28509235,60347.0,60338.0,0.165732]
[1727970242562,0.165723,60342.0,60338.0,0.165732]
[1727970242792,0.165717,60344.0,60340.0,0.165726]
[1727970243007,0.165719,60343.0,60340.0,0.165726]
[1727970243232,0.165719,60343.0,60336.0,0.331476]
[1727970243233,0.165725,60341.0,60336.0,0.331476]
[1727970243488,0.1714,60339.0,60324.0,0.61662935]
[1727970243722,0.1714,60339.0,60338.0,0.165733]
[1727970245476,0.0793,60339.0,60338.0,0.165733]
[1727970245704,0.02597825,60339.0,60338.0,0.165733]
[1727970248391,0.02597825,60339.0,60338.0,0.188733]
[1727970248628,0.02597825,60339.0,60338.0,0.192047]
[1727970248940,0.02597825,60339.0,60338.0,0.188733]
[1727970249179,0.02597825,60339.0,60338.0,0.45191971]
[1727970249454,2.5e-07,60339.0,60338.0,0.49014971]
[1727970249684,0.24872116,60345.0,60344.0,0.288716]
[1727970249938,0.24872116,60345.0,60344.0,0.73699506]
[1727970250173,0.0496643,60351.0,60345.0,0.123]
[1727970250464,0.0496643,60351.0,60350.0,0.1657]
[1727970250739,0.0802,60351.0,60350.0,0.1657]
[1727970251485,0.10617398,60351.0,60350.0,0.1657]
[1727970253379,0.02597398,60351.0,60350.0,0.1657]
[1727970255225,0.1392991,60358.0,60350.0,0.28509235]
[1727970255465,0.1392991,60358.0,60345.0,0.28509235]
[1727970255705,0.165693,60353.0,60348.0,0.165705]
[1727970255941,0.331382,60354.0,60339.0,0.05789951]
[1727970256177,0.331397,60351.0,60345.0,0.165712]
[1727970256426,0.331411,60348.0,60342.0,0.16572]
[1727970256691,0.165706,60348.0,60344.0,0.165715]
[1727970256918,0.1739,60347.0,60342.0,0.331443]
[1727970257155,0.331422,60346.0,60339.0,0.001634]
[1727970257390,0.331447,60342.0,60339.0,0.001634]
[1727970257636,0.165715,60345.0,60341.0,0.165724]
[1727970257870,0.1739,60347.0,60339.0,0.001634]
[1727970258093,0.1739,60347.0,60346.0,0.165711]
[1727970258564,0.19987639,60347.0,60346.0,0.165711]
[1727970260722,0.0794,60354.0,60353.0,0.165691]
[1727970261620,0.10537303,60354.0,60353.0,0.165691]
[1727970262308,0.12529033,60354.0,60349.0,0.331404]
[1727970262529,0.12529033,60354.0,60351.0,0.165696]
[1727970262749,0.12529033,60354.0,60335.0,0.33464847]
[1727970262750,0.29098133,60354.0,60348.0,0.33141]
[1727970262984,0.29098133,60354.0,60335.0,0.28509235]
[1727970262985,0.10475133,60353.0,60342.0,0.00682327]
[1727970263208,0.10475133,60353.0,60351.0,0.165694]
[1727970263445,0.27044333,60353.0,60348.0,0.331409]
[1727970263669,0.10475133,60353.0,60350.0,0.165699]
[1727970263895,0.08009904,60352.0,60339.0,0.30650488]
[1727970264126,0.08009904,60352.0,60347.0,0.331412]
[1727970264356,0.24872116,60353.0,60347.0,0.331412]
[1727970264582,0.24872116,60353.0,60350.0,0.165699]
[1727970264803,0.24872116,60353.0,60352.0,0.165694]
[1727970265027,0.10537303,60354.0,60352.0,0.165694]
[1727970265242,0.10537303,60354.0,60349.0,0.331402]
[1727970265461,0.0861904,60353.0,60351.0,0.165694]
[1727970265682,0.0861904,60353.0,60349.0,0.331402]
[1727970265934,0.0861904,60353.0,60351.0,0.165696]
[1727970266161,0.0861904,60353.0,60350.0,0.497098]
[1727970266398,0.0861904,60353.0,60352.0,0.165694]
[1727970266624,0.0794,60354.0,60352.0,0.165694]
[1727970266842,0.0794,60354.0,60353.0,0.165691]
[1727970267374,0.0794,60354.0,60351.0,0.165695]
[1727970267623,0.165692,60353.0,60344.0,0.331428]
[1727970267855,0.165699,60351.0,60345.0,0.331426]
[1727970268097,0.0794,60350.0,60339.0,0.001634]
[1727970268319,0.165711,60346.0,60343.0,0.165719]
[1727970268562,0.165711,60346.0,60339.0,0.001634]
[1727970268563,0.07624694,60349.0,60340.0,0.331451]
[1727970268780,0.0794,60350.0,60349.0,0.165702]
[1727970269471,0.10537598,60350.0,60349.0,0.165702]
[1727970270146,0.02597598,60350.0,60349.0,0.165702]
[1727970270833,0.000818,60353.0,60352.0,0.165694]
[1727970271544,0.000818,60353.0,60352.0,0.188694]
[1727970272414,0.000818,60353.0,60352.0,0.29521983]
[1727970272646,0.000818,60353.0,60352.0,0.45840654]
[1727970272902,1e-06,60353.0,60352.0,0.45840654]
[1727970273153,1e-06,60353.0,60352.0,0.49663654]
[1727970273428,1e-06,60353.0,60352.0,0.46540654]
[1727970273686,1e-06,60353.0,60352.0,0.46340654]
[1727970274168,1e-06,60353.0,60352.0,0.29521983]
[1727970274967,0.02596935,60353.0,60352.0,0.29521983]
[1727970275206,1e-06,60353.0,60352.0,0.29521983]
[1727970275448,1e-06,60353.0,60352.0,0.19521983]
[1727970276475,1e-06,60353.0,60352.0,0.19696564]
[1727970277491,1e-06,60353.0,60352.0,0.46015235]
[1727970277742,1e-06,60353.0,60352.0,0.45840654]
[1727970277989,1e-06,60353.0,60352.0,0.19521983]
[1727970278242,1e-06,60353.0,60352.0,0.17221983]
[1727970278723,1e-06,60353.0,60352.0,0.165694]
[1727970280644,1e-06,60353.0,60351.0,0.165696]
[1727970280882,1e-06,60353.0,60352.0,0.165694]
[1727970281108,1e-06,60353.0,60338.0,0.24872116]
[1727970281362,0.1764,60352.0,60344.0,0.1]
[1727970281617,0.1764,60352.0,60350.0,0.165698]
[1727970281846,0.1764,60352.0,60351.0,0.165697]
[1727970282322,1e-06,60353.0,60352.0,0.165694]
[1727970283060,1e-06,60353.0,60352.0,0.188694]
[1727970284241,1e-06,60353.0,60352.0,0.35870751]
[1727970284457,0.02597035,60353.0,60352.0,0.35870751]
[1727970284931,0.02597035,60353.0,60352.0,0.45870751]
[1727970285153,0.02597035,60353.0,60352.0,0.46070751]
[1727970286077,1e-06,60353.0,60352.0,0.45870751]
[1727970287525,1e-06,60353.0,60352.0,0.46070751]
[1727970287992,1e-06,60353.0,60352.0,0.53666246]
[1727970288235,0.000817,60363.0,60362.0,0.165667]
[1727970288505,0.000817,60363.0,60362.0,0.73894606]
[1727970288730,0.24872116,60371.0,60364.0,0.288661]
[1727970288964,1e-06,60365.0,60364.0,0.45384771]
[1727970289411,1e-06,60365.0,60364.0,0.48707771]
[1727970289631,0.082518,60386.0,60366.0,0.002]
[1727970289861,0.082518,60386.0,60380.0,0.47370935]
[1727970290334,0.082518,60386.0,60385.0,0.165604]
[1727970291673,0.000818,60386.0,60385.0,0.165604]
[1727970291904,0.000818,60386.0,60385.0,0.47369635]
[1727970293072,0.000818,60386.0,60385.0,0.165604]
[1727970293535,0.000818,60386.0,60385.0,0.35179071]
[1727970293762,0.000818,60386.0,60385.0,0.45179071]
[1727970295115,0.000818,60386.0,60385.0,0.45845317]
[1727970296116,0.000818,60386.0,60385.0,0.46045317]
[1727970296342,0.000818,60386.0,60385.0,0.45845317]
[1727970296585,0.000818,60386.0,60385.0,0.27226646]
[1727970297040,0.000818,60386.0,60385.0,0.17226646]
[1727970297271,0.000818,60386.0,60385.0,0.165604]
[1727970297780,0.01779637,60386.0,60385.0,0.165604]
[1727970298016,0.11069637,60386.0,60385.0,0.165604]
[1727970298718,0.11072364,60386.0,60385.0,0.165604]
[1727970298950,0.12772928,60386.0,60385.0,0.165604]
[1727970300628,0.14877221,60386.0,60380.0,0.331235]
[1727970300880,0.14877221,60386.0,60385.0,0.165604]
[1727970300881,0.11072364,60386.0,60385.0,0.165604]
[1727970301116,0.01782364,60386.0,60385.0,0.165604]
[1727970301927,0.01782364,60386.0,60385.0,0.41432516]
[1727970302084,0.001636,60395.0,60385.0,0.29118671]
[1727970302330,0.25035716,60395.0,60394.0,0.57367135]
[1727970302590,0.25035716,60395.0,60394.0,0.45176571]
[1727970302860,0.001636,60395.0,60394.0,0.45176571]
[1727970303371,0.000818,60399.0,60394.0,0.45176571]
[1727970303372,0.000818,60399.0,60398.0,0.288568]
[1727970304894,0.02676634,60399.0,60398.0,0.288568]
[1727970305134,0.02676634,60399.0,60398.0,0.45175471]
[1727970305381,0.02676634,60399.0,60398.0,0.45836527]
[1727970307199,0.000818,60399.0,60398.0,0.45836527]
[1727970307439,0.000818,60399.0,60398.0,0.29517856]
[1727970307959,0.000818,60399.0,60398.0,0.45836527]
[1727970308235,0.000818,60401.0,60399.0,0.005]
[1727970308443,0.000818,60406.0,60401.0,0.123]
[1727970308680,1e-06,60407.0,60406.0,0.57863835]
[1727970308920,1e-06,60407.0,60406.0,0.74182506]
[1727970310422,1e-06,60407.0,60406.0,0.73682506]
[1727970310674,1e-06,60407.0,60406.0,0.74856569]
[1727970310924,1e-06,60407.0,60406.0,0.74356569]
[1727970311179,1e-06,60407.0,60406.0,0.74856569]
[1727970311669,0.02594466,60407.0,60406.0,0.74856569]
[1727970311938,0.02594466,60407.0,60406.0,0.74356569]
[1727970312206,0.02594466,60407.0,60406.0,0.74856569]
[1727970313457,0.02594466,60407.0,60406.0,0.74356569]
[1727970313731,0.02594466,60407.0,60406.0,0.27228663]
[1727970314006,0.02594466,60407.0,60406.0,0.17228663]
[1727970314773,0.02594466,60407.0,60406.0,0.33547334]
[1727970315507,0.02594466,60407.0,60406.0,0.45847334]
[1727970315732,0.02594466,60407.0,60406.0,0.27228663]
[1727970315975,0.02594466,60407.0,60406.0,0.45847334]
[1727970315976,1e-06,60407.0,60406.0,0.45847334]
[1727970316427,1e-06,60407.0,60406.0,0.46347334]
[1727970316889,0.001636,60408.0,60406.0,0.46347334]
[1727970316890,0.001636,60408.0,60407.0,0.293543]
[1727970317149,0.001636,60408.0,60407.0,0.45872971]
[1727970317372,0.001636,60408.0,60407.0,0.48995971]
[1727970317808,0.001636,60408.0,60407.0,0.45672971]
[1727970318802,0.001636,60408.0,60407.0,0.49195971]
[1727970319023,0.001636,60408.0,60407.0,0.48995971]
[1727970319478,0.001636,60408.0,60407.0,0.45172971]
[1727970320151,0.001636,60408.0,60407.0,0.43372971]
[1727970320378,0.001636,60408.0,60407.0,0.42872971]
[1727970321088,0.001636,60408.0,60407.0,0.265543]
[1727970321313,0.082636,60408.0,60407.0,0.265543]
[1727970321579,0.13197467,60408.0,60407.0,0.165543]
[1727970322100,0.13197467,60408.0,60406.0,0.33783263]
[1727970322101,0.15511574,60408.0,60406.0,0.331092]
[1727970322350,0.04933867,60407.0,60404.0,0.331102]
[1727970322606,0.04933867,60407.0,60402.0,0.331114]
[1727970322893,0.04933867,60407.0,60400.0,4e-05]
[1727970322894,0.0948,60406.0,60400.0,4e-05]
[1727970323162,0.0948,60406.0,60394.0,0.331157]
[1727970323163,0.1711,60401.0,60395.0,0.331152]
[1727970323450,0.0763,60400.0,60391.0,0.41430616]
[1727970323738,0.165577,60395.0,60391.0,0.24872116]
[1727970323976,0.260379,60394.0,60389.0,0.165591]
[1727970324235,0.0948,60394.0,60393.0,0.165582]
[1727970324482,0.0948,60394.0,60381.0,0.04965]
[1727970324741,0.165585,60392.0,60386.0,0.165599]
[1727970325080,0.0778,60393.0,60386.0,0.3312]
[1727970325215,0.0778,60393.0,60392.0,0.165584]
[1727970326254,0.26323868,60393.0,60389.0,0.165592]
[1727970326515,0.165593,60389.0,60385.0,0.167236]
[1727970326763,0.09765568,60393.0,60387.0,0.24872116]
[1727970326764,0.0778,60393.0,60387.0,0.24872116]
[1727970327035,0.0778,60393.0,60387.0,0.331194]
[1727970327281,0.0778,60393.0,60392.0,0.165584]
[1727970328205,0.0778,60393.0,60392.0,0.167218]
[1727970330619,0.0778,60393.0,60392.0,0.001634]
[1727970331774,0.0778,60393.0,60386.0,0.1656]
[1727970332005,0.0778,60393.0,60388.0,0.165593]
[1727970332235,0.0778,60393.0,60389.0,0.165592]
[1727970332461,0.0778,60393.0,60392.0,0.165584]
[1727970335994,0.0778,60393.0,60392.0,0.45067635]
[1727970336237,0.082,60401.0,60396.0,0.331146]
[1727970336476,0.24872116,60404.0,60396.0,0.331146]
[1727970336477,0.24872116,60404.0,60400.0,0.28509235]
[1727970336701,0.24872116,60404.0,60403.0,0.165554]
[1727970336921,0.083636,60408.0,60403.0,0.165554]
[1727970336922,0.083636,60408.0,60407.0,0.165543]
[1727970337390,0.001636,60408.0,60407.0,0.165543]
[1727970338305,0.001636,60408.0,60407.0,0.45172971]
[1727970338529,0.0942,60425.0,60412.0,0.29876]
[1727970338754,0.24872116,60427.0,60413.0,0.293527]
[1727970339030,0.24872116,60427.0,60413.0,0.45671371]
[1727970339481,0.24872116,60427.0,60413.0,0.49194371]
[1727970340733,0.24872116,60427.0,60413.0,0.45671371]
[1727970340987,0.24872116,60427.0,60413.0,0.45171371]
[1727970341237,0.24872116,60427.0,60413.0,0.45671371]
[1727970342726,0.0945,60419.0,60413.0,0.265527]
[1727970342966,0.0945,60419.0,60413.0,0.165527]
[1727970343217,0.082418,60414.0,60413.0,0.165527]
[1727970343709,0.10836553,60414.0,60411.0,0.331064]
[1727970343952,0.12865208,60414.0,60409.0,0.165537]
[1727970344222,0.12865208,60414.0,60411.0,0.165531]
[1727970344460,0.10836553,60414.0,60413.0,0.165527]
[1727970346049,0.10836553,60414.0,60411.0,0.165531]
[1727970346274,0.10836553,60414.0,60413.0,0.165527]
[1727970347937,0.02676553,60414.0,60413.0,0.165527]
[1727970349145,0.02676553,60414.0,60413.0,0.45356369]
[1727970349378,0.000818,60414.0,60413.0,0.48494371]
[1727970349854,0.000818,60414.0,60413.0,0.48694371]
[1727970350900,0.24872116,60427.0,60426.0,0.165491]
[1727970351386,0.0806,60432.0,60431.0,0.165477]
[1727970352352,0.10653826,60432.0,60431.0,0.165477]
[1727970353115,0.10653826,60432.0,60431.0,0.41419816]
[1727970353382,0.10653826,60432.0,60431.0,0.165477]
[1727970353383,0.10735526,60432.0,60431.0,0.165477]
[1727970354853,0.10735526,60432.0,60431.0,0.17219808]
[1727970355092,0.02675526,60432.0,60431.0,0.17219808]
[1727970355314,0.02675526,60432.0,60431.0,0.19519808]
[1727970355801,0.000817,60432.0,60431.0,0.19519808]
[1727970357224,0.000817,60432.0,60431.0,0.17219808]
[1727970357461,0.000817,60432.0,60431.0,0.165477]
[1727970357683,0.098717,60432.0,60431.0,0.165477]
[1727970358836,0.000817,60432.0,60431.0,0.165477]
[1727970361263,0.000817,60432.0,60431.0,0.265477]
[1727970361535,0.000817,60432.0,60431.0,0.49795198]
[1727970361772,0.000817,60432.0,60431.0,0.45166371]
[1727970362494,0.02593708,60436.0,60435.0,0.60878935]
[1727970362716,0.02593708,60436.0,60435.0,0.76997606]
[1727970363249,0.02593708,60436.0,60435.0,0.73674606]
[1727970364872,0.02593708,60436.0,60435.0,0.73678606]
[1727970366243,0.171,60452.0,60446.0,0.165436]
[1727970366470,0.171,60452.0,60442.0,0.330895]
[1727970366471,0.167717,60447.0,60442.0,0.330895]
[1727970366702,0.167717,60447.0,60446.0,0.165436]
[1727970369556,0.167717,60447.0,60441.0,0.330899]
[1727970369557,0.165437,60446.0,60441.0,0.330899]
[1727970369785,0.19364975,60447.0,60434.0,0.0492931]
[1727970369786,0.06899418,60445.0,60434.0,0.0492931]
[1727970370017,0.11804975,60447.0,60437.0,0.24872116]
[1727970370018,0.0779,60443.0,60437.0,0.24872116]
[1727970370253,0.0779,60443.0,60442.0,0.165447]
[1727970371931,0.0926,60444.0,60443.0,0.165445]
[1727970372395,0.02674975,60447.0,60446.0,0.165436]
[1727970372622,0.02674975,60447.0,60446.0,0.47659789]
[1727970372840,0.02674975,60447.0,60446.0,0.63671506]
[1727970373298,0.02674975,60447.0,60446.0,0.73671506]
[1727970374027,0.02674975,60447.0,60446.0,0.55052835]
[1727970374483,0.02674975,60447.0,60446.0,0.73671506]
[1727970374713,0.02674975,60447.0,60446.0,0.76994506]
[1727970376199,0.000817,60447.0,60446.0,0.76994506]
[1727970377806,0.000817,60447.0,60446.0,0.45052835]
[1727970378029,0.097517,60447.0,60446.0,0.165436]
[1727970378718,0.1152187,60447.0,60442.0,0.330894]
[1727970378947,0.1152187,60447.0,60446.0,0.165436]
[1727970378948,0.097517,60447.0,60446.0,0.165436]
[1727970379425,0.12345143,60447.0,60446.0,0.165436]
[1727970379891,0.02675143,60447.0,60446.0,0.165436]
[1727970380116,0.02675143,60447.0,60446.0,0.42862271]
[1727970380357,0.000817,60447.0,60446.0,0.265436]
[1727970381552,0.000817,60447.0,60446.0,0.165436]
[1727970382022,0.02674804,60447.0,60446.0,0.165436]
[1727970382293,0.02674804,60447.0,60444.0,0.330883]
[1727970382294,0.0814,60446.0,60445.0,0.165438]
[1727970382798,0.0814,60446.0,60445.0,0.45053035]
[1727970383308,0.0814,60446.0,60445.0,0.165438]
[1727970385807,0.02674804,60447.0,60446.0,0.165436]
[1727970386060,0.000817,60447.0,60446.0,0.165436]
[1727970386625,0.000817,60447.0,60446.0,0.48034779]
[1727970386881,0.000817,60447.0,60446.0,0.46685271]
[1727970388135,0.000817,60447.0,60446.0,0.47348271]
[1727970388373,0.000817,60447.0,60446.0,0.265436]
[1727970388599,0.000817,60447.0,60446.0,0.27197538]
[1727970389307,0.000817,60447.0,60446.0,0.17197538]
[1727970389308,0.02674734,60447.0,60446.0,0.17197538]
[1727970389802,0.02674734,60447.0,60446.0,0.165436]
[1727970390046,0.03740207,60447.0,60446.0,0.165436]
[1727970390279,0.02674734,60447.0,60446.0,0.165436]
[1727970390740,0.02674734,60447.0,60446.0,0.41415716]
[1727970390973,0.02674734,60447.0,60446.0,0.165436]
[1727970392820,0.12254734,60447.0,60446.0,0.165436]
[1727970393334,0.12254734,60447.0,60446.0,0.41415716]
[1727970393618,0.12254734,60447.0,60446.0,0.165436]
[1727970394902,0.02674734,60447.0,60446.0,0.165436]
[1727970395194,0.02674734,60447.0,60446.0,0.55052835]
[1727970395430,0.000817,60447.0,60446.0,0.55052835]
[1727970395697,0.02674708,60447.0,60446.0,0.55052835]
[1727970395934,0.000817,60447.0,60446.0,0.55052835]
[1727970397409,0.0002,60459.0,60446.0,0.55052835]
[1727970397410,0.0157407,60470.0,60467.0,0.005]
[1727970397643,0.24872216,60469.0,60468.0,0.170376]
[1727970397868,0.0001,60480.0,60478.0,0.265349]
[1727970398586,0.02611451,60479.0,60478.0,0.265349]
[1727970399069,0.02611451,60479.0,60478.0,0.99872041]
[1727970399533,0.02611451,60479.0,60478.0,0.71362806]
[1727970399761,0.0002,60479.0,60478.0,0.71362806]
[1727970400260,0.000817,60493.0,60478.0,0.71362806]
[1727970400262,0.000817,60493.0,60492.0,0.165311]
[1727970400488,0.000817,60493.0,60492.0,0.265311]
[1727970405882,0.000817,60493.0,60492.0,0.151311]
[1727970406845,0.000817,60493.0,60492.0,0.175311]
[1727970406846,0.079317,60493.0,60492.0,0.175311]
[1727970407752,0.078317,60493.0,60492.0,0.165311]
[1727970409182,0.078317,60493.0,60492.0,0.169311]
[1727970409408,0.078317,60493.0,60489.0,0.330635]
[1727970409409,0.1042297,60493.0,60489.0,0.330635]
[1727970409660,0.1042297,60493.0,60490.0,0.165315]
[1727970409878,0.1042297,60493.0,60481.0,0.28509235]
[1727970410104,0.165322,60488.0,60484.0,0.165331]
[1727970410340,0.0978,60491.0,60490.0,0.165316]
[1727970411481,0.0978,60491.0,60487.0,0.330646]
[1727970411482,0.0978,60491.0,60487.0,0.330649]
[1727970411706,0.0978,60491.0,60488.0,0.165321]
[1727970412160,0.0978,60491.0,60485.0,0.24872116]
[1727970412389,0.0978,60491.0,60490.0,0.165316]
[1727970412617,0.0978,60491.0,60486.0,0.61574535]
[1727970412845,0.0978,60491.0,60490.0,0.165316]
[1727970413062,0.0988,60491.0,60490.0,0.165316]
[1727970413536,0.0978,60491.0,60490.0,0.165316]
[1727970413788,0.1042297,60493.0,60492.0,0.165311]
[1727970414038,0.1042297,60493.0,60492.0,0.45040335]
[1727970416129,0.000817,60493.0,60492.0,0.45040335]
[1727970417071,0.000817,60493.0,60492.0,0.45740335]
[1727970418483,0.000817,60493.0,60492.0,0.45040335]
[1727970418739,0.000817,60493.0,60492.0,0.46040335]
[1727970419191,0.000817,60493.0,60492.0,0.45040335]
[1727970419429,0.02672824,60493.0,60492.0,0.46240335]
[1727970419650,0.000817,60493.0,60492.0,0.46240335]
[1727970419894,0.000817,60493.0,60492.0,0.45040335]
[1727970420127,0.083517,60493.0,60492.0,0.01]
[1727970420412,0.083517,60493.0,60492.0,0.175311]
[1727970421123,0.2572584,60493.0,60492.0,0.01]
[1727970421388,0.2572584,60493.0,60492.0,0.175311]
[1727970421389,0.083517,60493.0,60492.0,0.175311]
[1727970421606,0.083517,60493.0,60492.0,0.165311]
[1727970421841,0.083517,60493.0,60492.0,0.173311]
[1727970422089,0.083517,60493.0,60492.0,0.45840335]
[1727970422331,0.083517,60493.0,60492.0,0.45040335]
[1727970422541,0.02672931,60493.0,60492.0,0.45040335]
[1727970422768,0.02772931,60493.0,60492.0,0.45040335]
[1727970423220,0.02672931,60493.0,60492.0,0.45040335]
[1727970423455,0.02672931,60493.0,60492.0,0.45740335]
[1727970424683,0.02672931,60493.0,60492.0,0.55040335]
[1727970425135,0.000817,60497.0,60496.0,0.1653]
[1727970425380,0.000817,60497.0,60496.0,0.42848671]
[1727970426070,0.000117,60497.0,60496.0,0.42848671]
[1727970426307,0.000117,60499.0,60498.0,0.165294]
[1727970426778,1.7e-05,60499.0,60498.0,0.165294]
[1727970426994,0.076933,60508.0,60507.0,0.16527]
[1727970427220,0.076933,60508.0,60507.0,0.45036235]
[1727970427477,0.076833,60508.0,60507.0,0.45036235]
[1727970427664,0.10263953,60508.0,60507.0,0.45036235]
[1727970427925,0.10203953,60508.0,60507.0,0.45036235]
[1727970428158,0.10193953,60508.0,60507.0,0.45036235]
[1727970428388,0.10163953,60508.0,60507.0,0.16527]
[1727970428630,0.10153953,60508.0,60507.0,0.45036235]
[1727970428861,0.10093953,60508.0,60507.0,0.45036235]
[1727970429089,0.10083953,60508.0,60507.0,0.45036235]
[1727970429322,0.10063953,60508.0,60507.0,0.45036235]
[1727970429509,0.10023953,60508.0,60507.0,0.45036235]
[1727970429775,0.09993953,60508.0,60507.0,0.45036235]
[1727970430033,0.09993953,60508.0,60507.0,0.45236235]
[1727970430034,0.02580653,60508.0,60507.0,0.45236235]
[1727970430250,0.02560653,60508.0,60507.0,0.45236235]
[1727970430478,0.02560653,60508.0,60507.0,0.45036235]
[1727970430705,0.02560653,60508.0,60507.0,0.99864141]
[1727970430933,0.0002,60519.0,60518.0,0.45033235]
[1727970432419,0.24872116,60537.0,60528.0,0.165212]
[1727970432643,0.24872116,60537.0,60528.0,0.45030435]
[1727970432873,0.32432116,60537.0,60528.0,0.45030435]
[1727970433119,0.0756,60537.0,60528.0,0.45030435]
[1727970433332,0.0002,60539.0,60528.0,0.45030435]
[1727970433556,0.0002,60539.0,60528.0,0.72011377]
[1727970433785,0.0002,60539.0,60528.0,0.75534377]
[1727970434037,0.0002,60539.0,60528.0,0.55692706]
[1727970434263,0.0002,60539.0,60528.0,0.27183471]
[1727970434715,0.0002,60539.0,60528.0,0.55692706]
[1727970435176,0.0002,60539.0,60528.0,0.56692706]
[1727970435397,0.0002,60539.0,60528.0,0.18183471]
[1727970435652,0.165383,60539.0,60528.0,0.18183471]
[1727970435888,0.330569,60539.0,60528.0,0.175212]
[1727970436166,0.330569,60539.0,60528.0,0.165212]
[1727970436167,0.0966567,60529.0,60528.0,0.165212]
[1727970436377,0.0966567,60529.0,60517.0,0.24872116]
[1727970436378,0.12284257,60529.0,60517.0,0.24872116]
[1727970436616,0.0966567,60529.0,60528.0,0.012]
[1727970436840,0.2618667,60529.0,60528.0,0.012]
[1727970437300,0.0966567,60529.0,60528.0,0.012]
[1727970437749,0.0966567,60529.0,60528.0,0.177212]
[1727970437975,0.0966567,60529.0,60526.0,0.165216]
[1727970438203,0.0966567,60529.0,60528.0,0.165212]
[1727970438427,0.0966567,60529.0,60528.0,0.176212]
[1727970438876,0.0966567,60529.0,60528.0,0.165212]
[1727970439141,0.0966567,60529.0,60526.0,0.165217]
[1727970439142,0.11532237,60529.0,60526.0,0.165217]
[1727970439381,0.11532237,60529.0,60520.0,0.330464]
[1727970439382,0.165218,60526.0,60520.0,0.330464]
[1727970439670,0.1442204,60529.0,60516.0,0.05612623]
[1727970439671,0.0996567,60529.0,60524.0,0.24872116]
[1727970439927,0.0996567,60529.0,60516.0,0.05612623]
[1727970439928,0.0966567,60529.0,60520.0,0.330464]
[1727970440164,0.0966567,60529.0,60516.0,0.38661523]
[1727970440165,0.0966567,60529.0,60526.0,0.165216]
[1727970440382,0.0966567,60529.0,60527.0,0.165213]
[1727970440599,0.0966567,60529.0,60528.0,0.165212]
[1727970441742,0.0996567,60529.0,60528.0,0.165212]
[1727970442201,0.0966567,60529.0,60528.0,0.165212]
[1727970442425,0.12255494,60529.0,60528.0,0.001]
[1727970442655,0.34206063,60529.0,60528.0,0.001]